[Event "Botvinnik Cup 2018"]
[Site "Moscow"]
[Date "2018.08.10"]
[Round "2"]
[White "Paichadze, Luka"]
[Black "Allahverdiyeva, Ayan"]
[Result "1-0"]
[ECO "C00"]
[WhiteElo "2564"]
[BlackElo "2046"]
[Annotator "RC"]
[PlyCount "113"]
[EventDate "2018.08.10"]
[EventCountry "RUS"]
[SourceTitle "playchess.com"]
[Source "ChessBase"]
[SourceQuality "1"]
[TimeControl "5400+30"]

1. e4 {[%emt 0:00:00]} e6 {[%emt 0:00:01]} 2. d3 {[%emt 0:00:09]} d5 {[%emt 0:03:03]} 3. Qe2 {[%emt 0:00:08]} Ne7 {[%emt 0:00:27]} 4. g3 {[%emt 0:01:30]} c5 {[%emt 0:00:10]} 5. Nf3 {[%emt 0:00:34]} Nbc6 {[%emt 0:00:07]} 6. Bg2 {[%emt 0:00:15]} g6 {[%emt 0:00:17]} 7. h4 {[%emt 0:00:27]} h6 {[%emt 0:00:18]} 8. O-O {[%emt 0:01:20]} Bg7 {[%emt 0:00:02]} 9. c3 {[%emt 0:00:17]} b6 {[%emt 0:01:43]} 10. e5 {[%emt 0:01:18]} a5 {[%emt 0:03:21]} 11. Re1 {[%emt 0:00:24]} Qc7 {[%emt 0:07:35]} 12. Bf4 {[%emt 0:01:09]} Ba6 {[%emt 0:02:15]} 13. Nbd2 {[%emt 0:00:13]} O-O {[%emt 0:02:10]} 14. Nf1 {[%emt 0:01:04]} b5 {[%emt 0:01:57]} 15. Qd2 {[%emt 0:09:14]} Kh7 {[%emt 0:00:53]} 16. Ne3 {[%emt 0:02:47]} Ng8 {[%emt 0:06:11]} 17. Ng4 {[%emt 0:01:30]} Qe7 {[%emt 0:00:54]} 18. Kh2 {[%emt 0:04:02]} f5 {[%emt 0:05:23]} 19. exf6 {[%emt 0:00:12]} Nxf6 {[%emt 0:00:04]} 20. Nxf6+ {[%emt 0:01:42]} Qxf6 {[%emt 0:06:46]} 21. Ne5 {[%emt 0:12:52]} Nxe5 {[%emt 0:01:58]} 22. Rxe5 {[%emt 0:01:23]} Qf7 {[%emt 0:04:43]} 23. Rae1 {[%emt 0:01:20]} Bxe5 {[%emt 0:03:09]} 24. Rxe5 {[%emt 0:02:37]} b4 {[%emt 0:10:10]} 25. Qe3 {[%emt 0:04:57]} Rae8 {[%emt 0:07:31]} 26. d4 {[%emt 0:02:26]} bxc3 {[%emt 0:10:22]} 27. bxc3 {[%emt 0:00:50]} cxd4 {[%emt 0:03:36]} 28. cxd4 {[%emt 0:00:35]} Bc4 {[%emt 0:04:13]} 29. Bh3 {[%emt 0:06:50]} Bxa2 {[%emt 0:00:26]} 30. Qa3 {[%emt 0:05:12]} Bb1 {[%emt 0:02:57]} 31. Qxa5 {[%emt 0:00:51]} Bf5 {[%emt 0:01:04]} 32. Bg2 {[%emt 0:03:29]} g5 {[%emt 0:00:51]} 33. hxg5 {[%emt 0:03:46]} Qh5+ {[%emt 0:00:12]} 34. Kg1 {[%emt 0:00:35]} hxg5 {[%emt 0:01:49]} 35. Bd2 {[%emt 0:00:31]} Kg6 {[%emt 0:03:26]} 36. Qc3 {[%emt 0:01:39]} Rb8 {[%emt 0:01:19]} 37. f3 {[%emt 0:03:23]} g4 {[%emt 0:01:40]} 38. Re1 {[%emt 0:03:27]} Rh8 {[%emt 0:01:14]} 39. fxg4 {[%emt 0:01:21]} Qh2+ {[%emt 0:00:44]} 40. Kf1 {[%emt 0:00:23]} Be4 {[%emt 0:01:18]} 41. Rxe4 {[%emt 0:00:26]} Rb1+ {[%emt 0:01:33]} 42. Re1 {[%emt 0:01:05]} Rf8+ {[%emt 0:01:56]} 43. Bf4 {[%emt 0:00:07]} Rxf4+ {[%emt 0:00:07]} 44. gxf4 {[%emt 0:00:02]} Qxf4+ {[%emt 0:00:04]} 45. Bf3 {[%emt 0:01:07]} Rxe1+ {[%emt 0:00:37]} 46. Kxe1 {[%emt 0:00:20]} Qg3+ {[%emt 0:01:50]} 47. Kd1 {[%emt 0:00:05]} Qg1+ {[%emt 0:00:01]} 48. Kd2 {[%emt 0:00:14]} Qf2+ {[%emt 0:00:52]} 49. Be2 {[%emt 0:00:07]} Qf8 {[%emt 0:00:28]} 50. Qb3 {[%emt 0:03:36]} Qd6 {[%emt 0:00:14]} 51. Qe3 {[%emt 0:01:54]} Qb4+ {[%emt 0:00:16]} 52. Kc2 {[%emt 0:00:20]} Qa4+ {[%emt 0:00:19]} 53. Kc1 {[%emt 0:00:29]} Qa1+ {[%emt 0:01:05]} 54. Kd2 {[%emt 0:00:28]} Qa5+ {[%emt 0:00:03]} 55. Qc3 {[%emt 0:00:02]} Qd8 {[%emt 0:00:15]} 56. Qg3 {[%emt 0:01:25]} Qa5+ {[%emt 0:00:21]} 57. Ke3 {[%emt 0:00:13]} 1-0

[Event "Botvinnik Cup 2018"]
[Site "Moscow"]
[Date "2018.08.10"]
[Round "2"]
[White "Sevdimaliyev, Urfan"]
[Black "Lomaia, Diana"]
[Result "1/2-1/2"]
[ECO "A48"]
[WhiteElo "2388"]
[BlackElo "1851"]
[Annotator "NA"]
[PlyCount "141"]
[EventDate "2018.08.10"]
[EventCountry "RUS"]
[SourceTitle "playchess.com"]
[Source "ChessBase"]
[SourceQuality "1"]
[TimeControl "5400+30"]

1. d4 {[%emt 0:00:20]} Nf6 {[%emt 0:00:00]} 2. Nf3 {[%emt 0:00:19]} g6 {[%emt 0:00:00]} 3. Bg5 {[%emt 0:00:32]} Bg7 {[%emt 0:00:00]} 4. Nbd2 {[%emt 0:00:11]} O-O {[%emt 0:00:27]} 5. c3 {[%emt 0:00:22]} d6 {[%emt 0:01:07]} 6. e4 {[%emt 0:01:46]} h6 {[%emt 0:03:36]} 7. Bh4 {[%emt 0:02:46]} c5 {[%emt 0:02:34]} 8. dxc5 {[%emt 0:01:03]} dxc5 {[%emt 0:00:27]} 9. Bc4 {[%emt 0:00:09]} Nc6 {[%emt 0:01:09]} 10. Qe2 {[%emt 0:00:46]} a6 {[%emt 0:03:51]} 11. a4 {[%emt 0:01:08]} Ng4 {[%emt 0:06:09]} 12. O-O {[%emt 0:02:34]} Nge5 {[%emt 0:01:11]} 13. Nxe5 {[%emt 0:00:18]} Nxe5 {[%emt 0:00:06]} 14. Bd5 {[%emt 0:01:36]} Qc7 {[%emt 0:11:51]} 15. f4 {[%emt 0:01:17]} e6 {[%emt 0:03:19]} 16. Ba2 {[%emt 0:01:04]} Nc6 {[%emt 0:00:56]} 17. e5 {[%emt 0:02:43]} Ne7 {[%emt 0:03:11]} 18. Ne4 {[%emt 0:01:48]} Nf5 {[%emt 0:02:27]} 19. Bf6 {[%emt 0:05:46]} b5 {[%emt 0:02:11]} 20. Qf2 {[%emt 0:07:14]} c4 {[%emt 0:01:42]} 21. Bb1 {[%emt 0:08:46]} Bb7 {[%emt 0:04:47]} 22. Bc2 {[%emt 0:00:29]} Rfb8 {[%emt 0:03:05]} 23. Rfd1 {[%emt 0:04:49]} Bd5 {[%emt 0:02:53]} 24. Bxg7 {[%emt 0:02:48]} Kxg7 {[%emt 0:00:25]} 25. Nf6 {[%emt 0:02:36]} Ne7 {[%emt 0:02:31]} 26. axb5 {[%emt 0:03:57]} axb5 {[%emt 0:03:00]} 27. Rxa8 {[%emt 0:02:04]} Rxa8 {[%emt 0:00:19]} 28. Qh4 {[%emt 0:02:50]} Qb6+ {[%emt 0:02:48]} 29. Kh1 {[%emt 0:00:43]} Qb7 {[%emt 0:01:02]} 30. Nxd5 {[%emt 0:05:48]} Nxd5 {[%emt 0:01:23]} 31. Be4 {[%emt 0:02:00]} Qa6 {[%emt 0:11:51]} 32. Bxd5 {[%emt 0:03:23]} exd5 {[%emt 0:00:12]} 33. h3 {[%emt 0:13:57]} Qe6 {[%emt 0:02:00]} 34. Qf2 {[%emt 0:00:21]} Ra2 {[%emt 0:00:40]} 35. Rd2 {[%emt 0:01:20]} Qf5 {[%emt 0:03:16]} 36. Qd4 {[%emt 0:02:13]} Kh7 {[%emt 0:04:12]} 37. Rf2 {[%emt 0:01:42]} Qe4 {[%emt 0:06:55]} 38. Qxe4 {[%emt 0:03:08]} dxe4 {[%emt 0:00:07]} 39. Re2 {[%emt 0:01:22]} b4 {[%emt 0:05:08]} 40. Rxe4 {[%emt 0:00:43]} Rxb2 {[%emt 0:00:11]} 41. Rxc4 {[%emt 0:00:18]} bxc3 {[%emt 0:00:33]} 42. Rxc3 {[%emt 0:00:02]} Rb4 {[%emt 0:00:09]} 43. Rf3 {[%emt 0:00:23]} Rb5 {[%emt 0:02:20]} 44. Kh2 {[%emt 0:01:50]} Kg7 {[%emt 0:00:04]} 45. Re3 {[%emt 0:04:26]} h5 {[%emt 0:01:28]} 46. Kg3 {[%emt 0:00:55]} Rb4 {[%emt 0:00:12]} 47. Kf3 {[%emt 0:00:25]} Rb1 {[%emt 0:00:36]} 48. g4 {[%emt 0:00:42]} Rf1+ {[%emt 0:01:12]} 49. Kg3 {[%emt 0:01:00]} h4+ {[%emt 0:00:51]} 50. Kxh4 {[%emt 0:00:34]} Rxf4 {[%emt 0:00:04]} 51. Kg5 {[%emt 0:02:13]} Rb4 {[%emt 0:00:39]} 52. h4 {[%emt 0:00:26]} Rb5 {[%emt 0:00:18]} 53. Kf4 {[%emt 0:00:10]} Rb4+ {[%emt 0:00:32]} 54. Re4 {[%emt 0:00:07]} Rb1 {[%emt 0:00:19]} 55. Kg5 {[%emt 0:01:13]} Rb5 {[%emt 0:00:34]} 56. Kf4 {[%emt 0:00:11]} Rb1 {[%emt 0:00:02]} 57. Rc4 {[%emt 0:00:35]} Rf1+ {[%emt 0:02:05]} 58. Kg5 {[%emt 0:00:28]} Re1 {[%emt 0:00:09]} 59. Rc5 {[%emt 0:00:37]} Re2 {[%emt 0:00:56]} 60. Kf4 {[%emt 0:00:33]} Rf2+ {[%emt 0:00:20]} 61. Ke3 {[%emt 0:02:03]} Rh2 {[%emt 0:00:29]} 62. Rc7 {[%emt 0:00:14]} Kg8 {[%emt 0:02:11]} 63. Kf4 {[%emt 0:00:36]} Rxh4 {[%emt 0:01:01]} 64. Kg5 {[%emt 0:00:13]} Rh1 {[%emt 0:00:11]} 65. e6 {[%emt 0:00:15]} fxe6 {[%emt 0:00:42]} 66. Kxg6 {[%emt 0:00:04]} Kf8 {[%emt 0:00:13]} 67. g5 {[%emt 0:00:34]} e5 {[%emt 0:00:58]} 68. Rc8+ {[%emt 0:01:15]} Ke7 {[%emt 0:00:03]} 69. Kg7 {[%emt 0:00:08]} e4 {[%emt 0:01:04]} 70. Rc4 {[%emt 0:02:45]} Ke6 {[%emt 0:00:26]} 71. Rxe4+ {[%emt 0:00:03]} 1/2-1/2

[Event "Botvinnik Cup 2018"]
[Site "Moscow"]
[Date "2018.08.10"]
[Round "2"]
[White "Sevdimaliyev, Urfan"]
[Black "Naqopia, Giorgi"]
[Result "1-0"]
[ECO "D03"]
[WhiteElo "2388"]
[BlackElo "1857"]
[Annotator "NA"]
[PlyCount "55"]
[EventDate "2018.08.10"]
[EventCountry "RUS"]
[SourceTitle "playchess.com"]
[Source "ChessBase"]
[SourceQuality "1"]
[TimeControl "5400+30"]

1. d4 {[%emt 0:00:00]} d5 {[%emt 0:00:00]} 2. Nf3 {[%emt 0:00:00]} Nf6 {[%emt 0:00:04]} 3. Bg5 {[%emt 0:00:37]} Nbd7 {[%emt 0:00:31]} 4. Nbd2 {[%emt 0:00:18]} e6 {[%emt 0:01:05]} 5. e3 {[%emt 0:02:30]} Be7 {[%emt 0:00:07]} 6. Bd3 {[%emt 0:00:26]} O-O {[%emt 0:00:21]} 7. c3 {[%emt 0:03:31]} c5 {[%emt 0:00:26]} 8. Ne5 {[%emt 0:01:38]} Nxe5 {[%emt 0:01:08]} 9. dxe5 {[%emt 0:00:05]} Nd7 {[%emt 0:00:03]} 10. Bxe7 {[%emt 0:00:21]} Qxe7 {[%emt 0:00:03]} 11. f4 {[%emt 0:00:07]} f6 {[%emt 0:04:40]} 12. exf6 {[%emt 0:00:44]} Nxf6 {[%emt 0:00:02]} 13. Nf3 {[%emt 0:00:13]} Bd7 {[%emt 0:44:59]} 14. O-O {[%emt 0:18:29]} Bc6 {[%emt 0:00:39]} 15. Qe1 {[%emt 0:05:55]} Rad8 {[%emt 0:03:27]} 16. Qh4 {[%emt 0:00:31]} g6 {[%emt 0:05:19]} 17. Ne5 {[%emt 0:05:10]} d4 {[%emt 0:02:01]} 18. cxd4 {[%emt 0:04:15]} cxd4 {[%emt 0:00:13]} 19. e4 {[%emt 0:09:04]} Qe8 {[%emt 0:04:47]} 20. Nxc6 {[%emt 0:09:38]} Qxc6 {[%emt 0:01:44]} 21. Rac1 {[%emt 0:01:08]} Qb6 {[%emt 0:00:01]} 22. b3 {[%emt 0:01:05]} Kg7 {[%emt 0:01:46]} 23. Rf3 {[%emt 0:07:01]} Qa5 {[%emt 0:14:17]} 24. f5 {[%emt 0:07:02]} Qe5 {[%emt 0:05:12]} 25. fxe6 {[%emt 0:01:54]} Qxe6 {[%emt 0:01:02]} 26. Rcf1 {[%emt 0:01:31]} Qg4 {[%emt 0:01:46]} 27. Qf2 {[%emt 0:01:05]} Nxe4 {[%emt 0:02:27]} 28. Bxe4 {[%emt 0:02:38]} 1-0

[Event "Botvinnik Cup 2018"]
[Site "Moscow"]
[Date "2018.08.10"]
[Round "2"]
[White "Egin, Vladimir"]
[Black "Igen, Amir"]
[Result "1/2-1/2"]
[ECO "C09"]
[WhiteElo "2317"]
[BlackElo "1778"]
[Annotator "NA"]
[PlyCount "140"]
[EventDate "2018.08.10"]
[EventCountry "RUS"]
[SourceTitle "playchess.com"]
[Source "ChessBase"]
[SourceQuality "1"]
[TimeControl "5400+30"]

1. e4 {[%emt 0:00:00]} e6 {[%emt 0:00:00]} 2. d4 {[%emt 0:00:00]} d5 {[%emt 0:00:03]} 3. Nd2 {[%emt 0:00:00]} c5 {[%emt 0:00:10]} 4. exd5 {[%emt 0:00:00]} exd5 {[%emt 0:00:18]} 5. Ngf3 {[%emt 0:00:00]} Nc6 {[%emt 0:00:21]} 6. Bb5 {[%emt 0:00:00]} Nf6 {[%emt 0:00:20]} 7. O-O {[%emt 0:00:12]} Be7 {[%emt 0:00:18]} 8. dxc5 {[%emt 0:00:04]} O-O {[%emt 0:00:16]} 9. Nb3 {[%emt 0:00:20]} Bg4 {[%emt 0:00:30]} 10. Be2 {[%emt 0:00:20]} Ne4 {[%emt 0:00:22]} 11. Be3 {[%emt 0:00:08]} Rc8 {[%emt 0:17:29]} 12. c3 {[%emt 0:04:01]} Qd7 {[%emt 0:05:37]} 13. Ne1 {[%emt 0:10:23]} Be6 {[%emt 0:02:00]} 14. f3 {[%emt 0:00:42]} Nf6 {[%emt 0:00:39]} 15. Qd2 {[%emt 0:00:43]} Ne5 {[%emt 0:01:48]} 16. Bd4 {[%emt 0:01:41]} Nc4 {[%emt 0:02:37]} 17. Qc2 {[%emt 0:00:12]} Qc7 {[%emt 0:02:45]} 18. Nd3 {[%emt 0:01:01]} Nd7 {[%emt 0:01:11]} 19. Rfe1 {[%emt 0:01:28]} Bh4 {[%emt 0:06:25]} 20. Rf1 {[%emt 0:01:36]} Bg5 {[%emt 0:07:43]} 21. f4 {[%emt 0:00:43]} Bf6 {[%emt 0:00:58]} 22. f5 {[%emt 0:00:54]} Bxf5 {[%emt 0:01:16]} 23. Rxf5 {[%emt 0:00:39]} Bxd4+ {[%emt 0:00:05]} 24. Nxd4 {[%emt 0:02:17]} Ne3 {[%emt 0:00:55]} 25. Qd2 {[%emt 0:00:35]} Nxf5 {[%emt 0:00:09]} 26. Nxf5 {[%emt 0:00:02]} Nxc5 27. Nxc5 {[%emt 0:00:40]} Qxc5+ {[%emt 0:00:56]} 28. Kh1 {[%emt 0:00:14]} h6 {[%emt 0:16:08]} 29. Qf4 {[%emt 0:02:13]} Rc6 {[%emt 0:08:44]} 30. Qe5 {[%emt 0:03:01]} Rf6 {[%emt 0:03:11]} 31. Bd3 {[%emt 0:03:47]} Kh8 {[%emt 0:07:19]} 32. Rf1 {[%emt 0:02:51]} Qc6 {[%emt 0:11:12]} 33. Re1 {[%emt 0:02:35]} Qc8 {[%emt 0:04:06]} 34. h3 {[%emt 0:01:19]} Qb8 {[%emt 0:00:21]} 35. Qd4 {[%emt 0:01:35]} Re8 {[%emt 0:00:30]} 36. Rxe8+ {[%emt 0:00:37]} Qxe8 {[%emt 0:00:02]} 37. Qxd5 {[%emt 0:00:14]} Re6 {[%emt 0:00:34]} 38. Qd4 {[%emt 0:01:47]} Re1+ {[%emt 0:00:09]} 39. Kh2 {[%emt 0:00:03]} Qb8+ {[%emt 0:00:15]} 40. g3 {[%emt 0:00:43]} Qe5 {[%emt 0:00:07]} 41. Qd8+ {[%emt 0:03:47]} Qe8 {[%emt 0:00:07]} 42. Qxe8+ {[%emt 0:00:09]} Rxe8 {[%emt 0:00:05]} 43. Kg2 {[%emt 0:00:15]} g6 {[%emt 0:02:03]} 44. Nxh6 {[%emt 0:03:35]} f5 {[%emt 0:00:15]} 45. Nf7+ {[%emt 0:00:38]} Kg7 {[%emt 0:00:06]} 46. Ng5 {[%emt 0:00:05]} Kf6 {[%emt 0:01:45]} 47. h4 {[%emt 0:05:15]} Rd8 {[%emt 0:00:08]} 48. Bc4 {[%emt 0:01:37]} Rd2+ {[%emt 0:00:12]} 49. Kf3 {[%emt 0:00:27]} Rxb2 {[%emt 0:00:09]} 50. Bb3 {[%emt 0:00:46]} a5 {[%emt 0:00:39]} 51. c4 {[%emt 0:08:01]} Rh2 {[%emt 0:01:24]} 52. Nh3 {[%emt 0:03:39]} a4 {[%emt 0:00:44]} 53. Bxa4 {[%emt 0:00:42]} Rxa2 {[%emt 0:00:05]} 54. Bb5 {[%emt 0:00:06]} Ra3+ {[%emt 0:00:04]} 55. Kf4 {[%emt 0:02:24]} Ra2 {[%emt 0:00:12]} 56. Ng5 {[%emt 0:01:12]} Rf2+ {[%emt 0:01:40]} 57. Nf3 {[%emt 0:01:03]} Rf1 {[%emt 0:00:29]} 58. Ke3 {[%emt 0:00:36]} Ra1 {[%emt 0:00:30]} 59. Nd4 {[%emt 0:03:22]} Ke5 {[%emt 0:00:28]} 60. Nf3+ {[%emt 0:00:40]} Kf6 {[%emt 0:00:22]} 61. Ng5 {[%emt 0:01:46]} Ra3+ {[%emt 0:00:39]} 62. Kf4 {[%emt 0:00:10]} Ra1 {[%emt 0:00:07]} 63. Bd7 {[%emt 0:00:28]} Rc1 {[%emt 0:00:08]} 64. Be6 {[%emt 0:00:14]} Rf1+ {[%emt 0:00:12]} 65. Ke3 {[%emt 0:00:42]} Re1+ {[%emt 0:00:56]} 66. Kf4 {[%emt 0:02:55]} Rf1+ {[%emt 0:00:41]} 67. Ke3 {[%emt 0:00:08]} Re1+ {[%emt 0:00:16]} 68. Kf4 {[%emt 0:02:44]} Rf1+ {[%emt 0:00:04]} 69. Ke3 {[%emt 0:00:14]} Re1+ {[%emt 0:00:02]} 70. Kf4 {[%emt 0:00:48]} Rf1+ {[%emt 0:00:07]} 1/2-1/2

[Event "Botvinnik Cup 2018"]
[Site "Moscow"]
[Date "2018.08.10"]
[Round "2"]
[White "Egin, Vladimir"]
[Black "Mailebayev, Sanzhar"]
[Result "1-0"]
[ECO "C47"]
[WhiteElo "2317"]
[BlackElo "1820"]
[Annotator "NA"]
[PlyCount "111"]
[EventDate "2018.08.10"]
[EventCountry "RUS"]
[SourceTitle "playchess.com"]
[Source "ChessBase"]
[SourceQuality "1"]
[TimeControl "5400+30"]

1. e4 {[%emt 0:00:00]} e5 {[%emt 0:00:35]} 2. Nf3 {[%emt 0:00:00]} Nc6 {[%emt 0:00:16]} 3. Nc3 {[%emt 0:00:00]} Nf6 {[%emt 0:00:16]} 4. d4 {[%emt 0:00:00]} exd4 {[%emt 0:05:36]} 5. Nxd4 {[%emt 0:00:00]} Bb4 {[%emt 0:01:51]} 6. Nxc6 {[%emt 0:00:00]} bxc6 {[%emt 0:00:53]} 7. Bd3 {[%emt 0:00:00]} O-O {[%emt 0:19:21]} 8. O-O {[%emt 0:11:24]} Re8 {[%emt 0:15:40]} 9. Bg5 {[%emt 0:03:34]} h6 {[%emt 0:02:34]} 10. Bh4 {[%emt 0:00:27]} Be7 {[%emt 0:22:45]} 11. e5 {[%emt 0:03:12]} Nh7 {[%emt 0:00:31]} 12. Bxe7 {[%emt 0:03:05]} Qxe7 {[%emt 0:00:19]} 13. f4 {[%emt 0:05:15]} d6 {[%emt 0:01:01]} 14. Qh5 {[%emt 0:02:54]} dxe5 {[%emt 0:03:26]} 15. fxe5 {[%emt 0:02:05]} Be6 {[%emt 0:00:13]} 16. Ne4 {[%emt 0:05:22]} Ng5 {[%emt 0:02:04]} 17. Rae1 {[%emt 0:01:52]} Rad8 {[%emt 0:02:34]} 18. Kh1 {[%emt 0:05:35]} Nxe4 {[%emt 0:01:35]} 19. Bxe4 {[%emt 0:03:48]} Bd5 {[%emt 0:02:21]} 20. h4 {[%emt 0:03:47]} Bxe4 {[%emt 0:02:32]} 21. Rxe4 {[%emt 0:00:48]} Rd5 {[%emt 0:00:04]} 22. c4 {[%emt 0:10:03]} Rxe5 {[%emt 0:00:20]} 23. Rxe5 {[%emt 0:02:50]} Qxe5 {[%emt 0:00:05]} 24. Qxf7+ {[%emt 0:00:04]} Kh8 {[%emt 0:00:28]} 25. b3 {[%emt 0:01:36]} a6 {[%emt 0:07:54]} 26. Qg6 {[%emt 0:01:14]} c5 {[%emt 0:03:39]} 27. g3 {[%emt 0:07:21]} a5 {[%emt 0:01:36]} 28. Kg2 {[%emt 0:01:21]} Rd8 {[%emt 0:00:45]} 29. Kh3 {[%emt 0:00:38]} Qe2 {[%emt 0:02:34]} 30. Rf7 {[%emt 0:02:44]} Qe5 {[%emt 0:00:09]} 31. Qf5 {[%emt 0:05:24]} Qd6 {[%emt 0:00:55]} 32. Qg4 {[%emt 0:02:49]} Qe5 {[%emt 0:00:19]} 33. Qg6 {[%emt 0:02:09]} Re8 {[%emt 0:00:39]} 34. Qf5 {[%emt 0:00:47]} Qd6 {[%emt 0:00:34]} 35. Qd7 {[%emt 0:02:16]} Qxd7+ {[%emt 0:00:30]} 36. Rxd7 {[%emt 0:00:03]} Re2 {[%emt 0:00:11]} 37. Rxc7 {[%emt 0:00:57]} Rxa2 {[%emt 0:00:20]} 38. Rxc5 {[%emt 0:00:03]} a4 {[%emt 0:00:16]} 39. bxa4 {[%emt 0:00:03]} Rxa4 {[%emt 0:00:06]} 40. h5 {[%emt 0:00:58]} Kg8 {[%emt 0:00:12]} 41. Kg4 {[%emt 0:01:51]} Ra3 {[%emt 0:00:23]} 42. Rc7 {[%emt 0:00:21]} Rc3 {[%emt 0:00:19]} 43. Kf4 {[%emt 0:02:51]} Kf8 {[%emt 0:00:47]} 44. g4 {[%emt 0:00:03]} Rc1 {[%emt 0:00:07]} 45. c5 {[%emt 0:01:19]} Kg8 {[%emt 0:00:45]} 46. Kf5 {[%emt 0:01:52]} Rf1+ {[%emt 0:00:47]} 47. Ke6 {[%emt 0:00:26]} Rf4 {[%emt 0:01:07]} 48. Rc8+ {[%emt 0:00:36]} Kh7 {[%emt 0:00:05]} 49. c6 {[%emt 0:00:29]} Rxg4 {[%emt 0:00:50]} 50. c7 {[%emt 0:00:34]} Rc4 {[%emt 0:00:27]} 51. Kd6 {[%emt 0:00:08]} Rc1 {[%emt 0:00:57]} 52. Rf8 {[%emt 0:00:19]} Rd1+ {[%emt 0:00:14]} 53. Ke5 {[%emt 0:00:06]} Re1+ {[%emt 0:00:45]} 54. Kd4 {[%emt 0:00:04]} Rc1 {[%emt 0:00:45]} 55. c8=Q {[%emt 0:00:06]} Rc7 {[%emt 0:00:04]} 56. Rh8# 1-0

[Event "Botvinnik Cup 2018"]
[Site "Moscow"]
[Date "2018.08.10"]
[Round "2"]
[White "Qalichava, Akaki"]
[Black "Sevdimaliyev, Urfan"]
[Result "1/2-1/2"]
[ECO "B35"]
[WhiteElo "1874"]
[BlackElo "2388"]
[Annotator "NA"]
[PlyCount "110"]
[EventDate "2018.08.10"]
[EventCountry "RUS"]
[SourceTitle "playchess.com"]
[Source "ChessBase"]
[SourceQuality "1"]
[TimeControl "5400+30"]

1. e4 {[%emt 0:00:00]} c5 {[%emt 0:00:10]} 2. Nf3 {[%emt 0:00:00]} Nc6 {[%emt 0:00:06]} 3. d4 {[%emt 0:00:00]} cxd4 {[%emt 0:00:01]} 4. Nxd4 {[%emt 0:00:00]} g6 {[%emt 0:00:33]} 5. Nc3 {[%emt 0:00:17]} Bg7 {[%emt 0:00:12]} 6. Be3 {[%emt 0:00:09]} Nf6 {[%emt 0:00:35]} 7. Bc4 {[%emt 0:00:19]} Qa5 {[%emt 0:02:29]} 8. f3 {[%emt 0:00:59]} O-O {[%emt 0:02:01]} 9. Qd2 {[%emt 0:00:46]} Qb4 {[%emt 0:02:41]} 10. Bb3 {[%emt 0:00:45]} Nxd4 {[%emt 0:00:51]} 11. Qxd4 {[%emt 0:00:18]} Qxd4 {[%emt 0:00:32]} 12. Bxd4 {[%emt 0:00:05]} d6 {[%emt 0:00:12]} 13. O-O-O {[%emt 0:02:55]} Bd7 {[%emt 0:01:52]} 14. Rhe1 {[%emt 0:01:38]} Bc6 {[%emt 0:01:31]} 15. Nd5 {[%emt 0:01:01]} Bxd5 {[%emt 0:03:31]} 16. exd5 {[%emt 0:00:13]} Rfe8 {[%emt 0:02:30]} 17. Ba4 {[%emt 0:00:30]} Reb8 {[%emt 0:04:03]} 18. Rxe7 {[%emt 0:01:41]} Nxd5 {[%emt 0:00:28]} 19. Ree1 {[%emt 0:01:08]} Bh6+ {[%emt 0:02:35]} 20. Kb1 {[%emt 0:00:48]} Nf4 {[%emt 0:02:28]} 21. g3 {[%emt 0:06:11]} Ne6 {[%emt 0:00:17]} 22. Bf6 {[%emt 0:01:49]} Nc5 {[%emt 0:04:01]} 23. Bb5 {[%emt 0:01:38]} Bf8 {[%emt 0:01:11]} 24. b4 {[%emt 0:02:46]} Ne6 {[%emt 0:04:32]} 25. Bd7 {[%emt 0:03:30]} Nd8 {[%emt 0:05:00]} 26. b5 {[%emt 0:04:50]} a6 {[%emt 0:03:49]} 27. a4 {[%emt 0:01:19]} axb5 {[%emt 0:05:04]} 28. axb5 {[%emt 0:00:24]} b6 {[%emt 0:00:58]} 29. h4 {[%emt 0:05:14]} Ra7 {[%emt 0:01:11]} 30. Bh3 {[%emt 0:01:14]} Nb7 {[%emt 0:03:31]} 31. h5 {[%emt 0:02:39]} Rba8 {[%emt 0:05:08]} 32. f4 {[%emt 0:01:31]} Bg7 {[%emt 0:07:00]} 33. Bxg7 {[%emt 0:00:28]} Kxg7 {[%emt 0:00:34]} 34. Bg2 {[%emt 0:00:36]} Ra1+ {[%emt 0:00:26]} 35. Kb2 {[%emt 0:00:05]} R8a2+ {[%emt 0:02:57]} 36. Kc3 {[%emt 0:00:02]} Ra3+ {[%emt 0:00:21]} 37. Kd4 {[%emt 0:01:48]} Rxd1+ {[%emt 0:01:17]} 38. Rxd1 {[%emt 0:00:05]} Nc5 {[%emt 0:00:23]} 39. c3 {[%emt 0:01:57]} Na4 {[%emt 0:03:47]} 40. Rc1 {[%emt 0:01:04]} gxh5 {[%emt 0:01:18]} 41. Bf3 {[%emt 0:02:08]} h4 {[%emt 0:01:40]} 42. gxh4 {[%emt 0:00:18]} Kf6 {[%emt 0:04:24]} 43. Be4 {[%emt 0:01:50]} h6 {[%emt 0:01:31]} 44. Kc4 {[%emt 0:00:20]} Nc5 {[%emt 0:00:25]} 45. Bc2 {[%emt 0:00:21]} d5+ {[%emt 0:01:55]} 46. Kxd5 {[%emt 0:07:02]} Rxc3 {[%emt 0:01:45]} 47. Kd4 {[%emt 0:00:24]} Rf3 {[%emt 0:01:14]} 48. f5 {[%emt 0:00:36]} Rxf5 {[%emt 0:06:05]} 49. Bxf5 {[%emt 0:01:07]} Nb3+ {[%emt 0:00:39]} 50. Kc3 {[%emt 0:00:02]} Nxc1 {[%emt 0:00:08]} 51. Bg4 {[%emt 0:00:08]} Ke5 {[%emt 0:01:32]} 52. Kc2 {[%emt 0:00:27]} Na2 {[%emt 0:01:31]} 53. Kb3 {[%emt 0:00:23]} Nc1+ {[%emt 0:01:40]} 54. Kc2 {[%emt 0:00:06]} Na2 {[%emt 0:00:45]} 55. Kb3 {[%emt 0:00:06]} Nc1+ 1/2-1/2

[Event "Botvinnik Cup 2018"]
[Site "Moscow"]
[Date "2018.08.10"]
[Round "2"]
[White "Nurmanova, Alua"]
[Black "Egin, Vladimir"]
[Result "0-1"]
[ECO "C24"]
[WhiteElo "1825"]
[BlackElo "2317"]
[Annotator "NA"]
[PlyCount "44"]
[EventDate "2018.08.10"]
[EventCountry "RUS"]
[SourceTitle "playchess.com"]
[Source "ChessBase"]
[SourceQuality "1"]
[TimeControl "5400+30"]

1. e4 {[%emt 0:00:00]} e5 {[%emt 0:00:00]} 2. f4 {[%emt 0:00:00]} exf4 {[%emt 0:00:00]} 3. Bc4 {[%emt 0:00:02]} Nf6 {[%emt 0:00:00]} 4. Nc3 {[%emt 0:00:08]} c6 {[%emt 0:00:01]} 5. Qe2 {[%emt 0:04:38]} Bb4 {[%emt 0:00:49]} 6. e5 {[%emt 0:06:27]} O-O {[%emt 0:00:52]} 7. d4 {[%emt 0:07:25]} d5 {[%emt 0:03:19]} 8. Bd3 {[%emt 0:00:50]} Ne4 {[%emt 0:02:53]} 9. Bxe4 {[%emt 0:03:37]} dxe4 {[%emt 0:10:23]} 10. Qxe4 {[%emt 0:07:09]} f6 {[%emt 0:00:54]} 11. Nf3 {[%emt 0:06:11]} fxe5 {[%emt 0:01:04]} 12. O-O {[%emt 0:15:35]} exd4 {[%emt 0:01:14]} 13. Ne2 {[%emt 0:04:48]} Bc5 {[%emt 0:02:17]} 14. Qd3 {[%emt 0:11:22]} Na6 {[%emt 0:04:20]} 15. Bxf4 {[%emt 0:05:29]} Qd5 {[%emt 0:01:42]} 16. Nfxd4 {[%emt 0:09:37]} Bf5 {[%emt 0:02:17]} 17. Qd2 {[%emt 0:07:05]} Bxc2 {[%emt 0:03:48]} 18. Kh1 {[%emt 0:03:58]} Be4 {[%emt 0:01:47]} 19. Rf2 {[%emt 0:04:24]} g5 {[%emt 0:02:56]} 20. Be3 {[%emt 0:00:33]} Rxf2 {[%emt 0:04:13]} 21. Bxf2 {[%emt 0:00:02]} Bxg2+ {[%emt 0:00:03]} 22. Kg1 {[%emt 0:00:14]} Bh3 {[%emt 0:06:33]} 0-1